[Event "Italian-ch Teams-B 2022"]
[Site "Montesilvano"]
[Date "2022.04.20"]
[Round "3.2"]
[White "Shytaj, Luca"]
[Black "David, Alberto"]
[Result "1/2-1/2"]
[ECO "A20"]
[WhiteElo "2460"]
[BlackElo "2545"]
[Annotator "TA"]
[PlyCount "58"]
[EventDate "2022.04.19"]
[EventType "team-tourn"]
[EventCountry "ITA"]
[SourceTitle "playchess.com"]
[Source "ChessBase"]
[SourceQuality "1"]
[TimeControl "40/5400+30:1800+30"]

{[%evp 9,58,17,16,0,16,0,0,0,20,0,9,-25,37,0,0,0,12,0,0,-38,20,-68,-69,-69,-64,-85,-53,-129,-120,-195,-186,-273,-255,-346,-331,-683,-362,-490,-254,-233,-22,-30,-63,-47,0,-62,0,0,0,-37,0]} 1. g3 {[%emt 0:00:15]} e5 {[%emt 0:02:55]} 2. c4 {[%emt 0:01:11]} c6 {[%emt 0:00:31]} 3. Bg2 {[%emt 0:01:45]} Nf6 {[%emt 0:03:55]} 4. d4 {[%emt 0:01:25]} e4 {[%emt 0:01:14]} 5. Nc3 {[%emt 0:01:01]} d5 {[%emt 0:09:31]} 6. a3 {[%emt 0:01:35] Prevents Bb4. A20: English Opening: 1...e5.} h6 {[%emt 0:02:17]} 7. f3 {[%emt 0:01:06]} exf3 $1 {[%emt 0:00:22]} 8. Nxf3 {[%emt 0:00:09][%cal Bg1f3,Bf3h4,Bh4f5][%mdl 32] The position is equal.} Be7 {[%emt 0:02:34]} 9. O-O {[%emt 0:00:52]} O-O {[%emt 0:02:54]} 10. Nh4 {[%emt 0:02:17]} Re8 {[%emt 0:10:50] [#]} (10... dxc4 $11 11. Nf5 Na6) 11. cxd5 $146 {[%emt 0:11:13]} ({Predecessor:} 11. Nf5 Bf8 12. g4 Bxf5 13. Rxf5 dxc4 14. e4 Nbd7 15. g5 Nh7 16. gxh6 g6 17. Rf1 {½-½ (42) Grischuk,A (2759)-Caruana,F (2812) Douglas 2019}) 11... cxd5 {[%emt 0:01:09]} 12. Nf5 {[%emt 0:00:40]} Bf8 {[%emt 0:01:12]} 13. g4 {[%emt 0:01:56]} Ne4 {[%emt 0:32:19] Inhibits g5.} 14. Qb3 {[%emt 0:15:17]} Nc6 {[%emt 0:08:08]} (14... Nxc3 $15 15. bxc3 Be6) 15. e3 {[%emt 0:11:26]} (15. Qxd5 Qxd5 16. Nxh6+ (16. Nxd5 Bxf5 17. gxf5 Nxd4 $17) 16... gxh6 $11) (15. Nxe4 $11 dxe4 16. Nxh6+ gxh6 17. Qxf7+ Kh8 18. Bg5 hxg5 19. Qh5+ Kg8 20. Qg6+ Bg7 21. Qf7+ Kh8 22. Qh5+ Kg8 23. Qf7+ Kh8 24. Qh5+ Kg8 25. Qf7+) 15... Nxc3 $15 {[%emt 0:01:54]} 16. bxc3 {[%emt 0:05:29]} Be6 $1 {[%emt 0:00:06]} (16... Bxf5 17. gxf5 (17. Rxf5 Qh4 $16) 17... Na5 18. Qxd5 $16) 17. Qxb7 {[%emt 0:02:14]} Na5 {[%emt 0:00:08]} 18. Qa6 {[%emt 0:03:11]} ({White should try} 18. Qb1 $15) 18... Rc8 {[%emt 0:03:47]} (18... g6 19. Ng3 $15) 19. Rb1 {[%emt 0:04:29]} (19. Qxa7 $2 Ra8 20. Qxa8 Qxa8 $19) (19. Qd3 $17) 19... Rxc3 $19 {[%emt 0:01:15]} 20. Qxa7 {[%emt 0:01:08]} (20. Qe2 {might work better.}) 20... Nc4 {[%emt 0:00:53]} 21. a4 {[%emt 0:01:42]} Rc2 {[%emt 0:02:59] Threatens to win with ...Qg5.} 22. e4 $2 {[%emt 0:09:07]} (22. Qb7 Qg5 23. h3 Bxf5 24. Rxf5 Rxc1+ 25. Rxc1 Qxe3+ 26. Kh1 Qxc1+ 27. Rf1) 22... dxe4 {[%emt 0:00:08]} 23. Bxe4 {[%emt 0:00:14]} Re2 {[%emt 0:06:08]} (23... Ra2 $142 24. g5 Bxf5 25. Rxf5 Kh8) 24. Bf3 {[%emt 0:05:12] [#]} Bd5 $2 {[%emt 0:00:09]} (24... Ra2 $1 $19 {...Bxf5 is the strong threat.} 25. Bf4 Nd2 26. Bxd2 Rxd2) 25. Bxe2 {[%emt 0:05:06]} Rxe2 {[%emt 0:00:05]} 26. Rf2 {[%emt 0:00:10] Prevents Rg2+.} Re1+ {[%emt 0:01:42][%mdl 1024] Black has compensation.} 27. Rf1 {[%emt 0:00:04]} Re2 {[%emt 0:01:49]} (27... Bc6 $1 $15 28. Rxe1 Qd5 29. Ne7+ (29. Re2 $2 {leads to mate.} Qh1+ 30. Kf2 Qg2+ 31. Ke1 Qg1#) 29... Bxe7 30. Qb8+ (30. Rb8+ {is a self mate.} Kh7) 30... Bd8) 28. Rf2 $11 {[%emt 0:00:04]} Re1+ {[%emt 0:00:02]} (28... Qe8 $5 29. Qb8 Re1+ 30. Rf1 Re2 $11) 29. Rf1 {[%emt 0:00:04]} Re2 {[%emt 0:04:04] Weighted Error Value: White=0.57/Black=0.41} (29... Bc6 $5 {[%cal Rd8d5]} 30. Rxe1 Qd5 31. Ne7+ (31. Re2 $2 {gets mated.} Qh1+ 32. Kf2 Qg2+ 33. Ke1 Qg1#) 31... Bxe7 32. Qb8+ (32. Rb8+ Kh7) 32... Kh7 $17) 1/2-1/2

[Event "Italian-ch Teams-B 2022"]
[Site "Montesilvano"]
[Date "2022.04.20"]
[Round "3.2"]
[White "Favaloro, Andrea"]
[Black "Borgo, Giulio"]
[Result "1/2-1/2"]
[ECO "A04"]
[WhiteElo "2370"]
[BlackElo "2345"]
[Annotator "TA"]
[PlyCount "55"]
[EventDate "2022.04.19"]
[EventType "team-tourn"]
[EventCountry "ITA"]
[SourceTitle "playchess.com"]
[Source "ChessBase"]
[SourceQuality "1"]
[TimeControl "40/5400+30:1800+30"]

{[%evp 9,55,26,32,31,34,14,67,71,83,75,67,66,92,84,92,87,202,197,198,132,126,124,124,132,145,137,125,104,183,158,212,79,88,76,103,105,110,104,109,53,135,112,108,64,179,60,57,58]} 1. Nf3 {[%emt 0:00:03] Mekhitarian,K} e6 {[%emt 0:09:39]} 2. g3 {[%emt 0:00:23]} b5 {[%emt 0:05:41]} 3. e4 {[%emt 0:01:18]} Bb7 {[%emt 0:02:18]} 4. Qe2 {[%emt 0:00:14]} c5 {[%emt 0:03:56]} 5. Bg2 {[%emt 0:00:41] [#]} Qb6 $146 {[%emt 0:03:36]} ({Predecessor:} 5... a6 6. O-O Nf6 7. e5 Nd5 8. b3 Nc6 9. Bb2 Be7 10. Nc3 Nxc3 11. dxc3 O-O {0-1 (54) Kramnik,V (2812)-Carlsen,M (2855) Leuven 2016 CBM 173 [Mekhitarian,K]}) 6. O-O {[%emt 0:01:59] A04: Unusual lines after 1 Nf3 and King's Indian Attack.} Be7 {[%emt 0:05:11]} 7. a4 {[%emt 0:05:17]} a6 {[%emt 0:25:06]} (7... b4 $1 $11) 8. axb5 $14 {[%emt 0:05:23]} axb5 {[%emt 0:00:06]} 9. Rxa8 {[%emt 0:00:08]} Bxa8 {[%emt 0:00:04]} 10. Na3 {[%emt 0:01:51]} c4 {[%emt 0:23:06]} 11. d3 $36 {[%emt 0:05:32][%mdl 2048] White is in control.} cxd3 {[%emt 0:02:06]} 12. Qxd3 {[%emt 0:01:46]} b4 {[%emt 0:00:43]} (12... Nf6 $16) 13. Nc4 $18 {[%emt 0:05:06]} Qd8 {[%emt 0:04:49]} 14. Nd6+ {[%emt 0:05:33]} ({White should play} 14. Bf4 $18) 14... Bxd6 $16 {[%emt 0:00:51]} 15. Qxd6 {[%emt 0:00:05]} Bxe4 {[%emt 0:00:18]} 16. Qxb4 {[%emt 0:04:58]} Nf6 {[%emt 0:03:38]} 17. Bf4 {[%emt 0:15:42]} Nc6 {[%emt 0:00:05]} 18. Qc5 {[%emt 0:00:27]} Nd5 {[%emt 0:05:01]} (18... h5 $16) 19. Bd6 $18 {[%emt 0:00:56] Threatens to win with Ra1. This bishop pair is nice.} f5 {[%emt 0:02:06]} (19... Qb6 $16 {was worth a try.} 20. c4 Qxc5 21. Bxc5 Ndb4) 20. c3 {[%emt 0:10:51]} (20. Ra1 $18) 20... Qb6 {[%emt 0:00:46]} 21. Qa3 {[%emt 0:07:57]} Qb7 {[%emt 0:01:12]} 22. Ra1 {[%emt 0:01:06] Qa8+ is the strong threat.} Nd8 {[%emt 0:00:16][%cal Od5e3]} 23. c4 {[%emt 0:08:38]} Nb6 {[%emt 0:00:10]} 24. Rc1 {[%emt 0:02:15]} (24. Qb3 $16) 24... h6 {[%emt 0:01:07]} (24... Nc8 $14 25. Bf4 Nf7) 25. Qc3 {[%emt 0:02:29]} Rg8 {[%emt 0:00:37]} 26. b3 {[%emt 0:02:02] Against Na4. &Bianco is more active.} Nc6 {[%emt 0:00:21]} (26... Nf7 $14 27. Bc5 Nc8) 27. b4 {[%emt 0:01:18]} (27. Bh3 $18) 27... Nc8 $14 {[%emt 0:00:17]} 28. Bc5 {[%emt 0:02:16] Weighted Error Value: White=0.23 (precise) /Black=0.29 (precise)} 1/2-1/2

[Event "Italian-ch Teams-B 2022"]
[Site "Montesilvano"]
[Date "2022.04.20"]
[Round "3.2"]
[White "Botta, Massimiliano"]
[Black "Bellini, Fabio"]
[Result "0-1"]
[ECO "B06"]
[WhiteElo "2217"]
[BlackElo "2428"]
[Annotator "TA"]
[PlyCount "74"]
[EventDate "2022.04.19"]
[EventType "team-tourn"]
[EventCountry "ITA"]
[SourceTitle "playchess.com"]
[Source "ChessBase"]
[SourceQuality "1"]
[TimeControl "40/5400+30:1800+30"]

{[%evp 9,74,35,38,25,14,-8,20,0,28,16,8,8,25,13,44,52,95,31,31,20,11,-70,-68,-35,-56,-41,-59,-62,-54,-113,-95,-148,-141,-137,-88,-82,-93,-88,-78,-75,-75,-72,-40,-31,6,4,2,-66,-45,-36,-50,-66,-75,-75,-74,-165,-153,-159,-144,-193,-191,-193,-199,-215,-198,-404,-322]} 1. e4 {[%emt 0:03:11]} g6 {[%emt 0:00:20]} 2. d4 {[%emt 0:00:05]} Bg7 {[%emt 0:00:05]} 3. Nf3 {[%emt 0:00:05]} c6 {[%emt 0:01:29]} 4. h3 {[%emt 0:01:04]} d5 {[%emt 0:00:16]} 5. e5 {[%emt 0:00:05]} f6 {[%emt 0:08:30]} 6. c4 {[%emt 0:01:54] B06: Modern Defence.} fxe5 {[%emt 0:06:10]} 7. dxe5 {[%emt 0:02:05] [#]} Nh6 $146 {[%emt 0:05:53]} ({Predecessor:} 7... e6 8. Nc3 Ne7 9. Bd3 O-O 10. Qe2 Nd7 11. Bg5 Rxf3 12. Qxf3 Nxe5 13. Qe2 h6 14. Bxe7 Qxe7 {½-½ (41) Sousa,A (2428)-Castillo Dalmau,A (2230) Ciudad Real 2021}) 8. Be2 {[%emt 0:10:55] The position is equal.} Nf7 {[%emt 0:02:48]} 9. Bf4 {[%emt 0:01:03]} e6 {[%emt 0:01:34]} 10. Nc3 {[%emt 0:01:41]} O-O {[%emt 0:08:34]} 11. O-O {[%emt 0:08:38]} Qe7 {[%emt 0:03:56]} 12. Re1 {[%emt 0:00:49]} ({Much worse is} 12. cxd5 exd5 13. Re1 (13. Qd4 Nd7 $17) 13... Nd7 $11) 12... b6 {[%emt 0:05:07]} 13. Qa4 {[%emt 0:06:48]} ({But not} 13. cxd5 cxd5 14. Rc1 Bb7 $14) (13. Rc1 $16) 13... Bb7 $14 {[%emt 0:02:05]} 14. Rad1 {[%emt 0:03:04]} Nd7 {[%emt 0:04:46][%cal Rf7e5,Bb8d7,Bd7e5,Be5f7,Bf7d6,Bd6f5][%mdl 32]} 15. cxd5 {[%emt 0:07:39]} (15. Bf1 $11) 15... exd5 $15 {[%emt 0:03:22][%cal Rf7e5]} 16. Bf1 {[%emt 0:06:19]} Nfxe5 {[%emt 0:05:56]} 17. Nxe5 {[%emt 0:09:31]} Nxe5 {[%emt 0:01:39]} 18. Bg3 {[%emt 0:01:30]} Qg5 {[%emt 0:03:06]} 19. Kh2 {[%emt 0:03:58]} (19. Re3 $15) 19... Nf7 $17 {[%emt 0:04:35]} 20. Bh4 {[%emt 0:03:07]} ({White should play} 20. Kg1) 20... Be5+ {[%emt 0:03:07]} 21. Kg1 {[%emt 0:00:23]} Qf4 {[%emt 0:07:06]} (21... Qh6 $142 22. Be7 Rfe8) 22. Qxf4 {[%emt 0:00:12]} Bxf4 {[%emt 0:00:03]} 23. Re7 {[%emt 0:00:03]} Rab8 {[%emt 0:01:23]} 24. Rde1 {[%emt 0:04:52]} Nd6 {[%emt 0:02:22]} 25. Rd7 {[%emt 0:02:00]} Nf5 {[%emt 0:03:39]} 26. Bd3 $1 {[%emt 0:00:55]} Rf7 {[%emt 0:07:34]} 27. Bxf5 {[%emt 0:00:14]} gxf5 {[%emt 0:00:13]} 28. Ree7 {[%emt 0:00:02]} (28. Rxf7 $1 $11 Kxf7 29. Re7+ Kg6 30. Ne2) 28... Rxe7 $15 {[%emt 0:00:18]} 29. Rxe7 {[%emt 0:00:04]} Ba6 {[%emt 0:04:06] aiming for ...d4.} 30. Rxa7 {[%emt 0:01:37]} Bc4 {[%emt 0:00:35] White must now prevent ...d4.} 31. Bf6 {[%emt 0:00:14]} Re8 {[%emt 0:01:09][%cal Re8e1]} 32. g4 {[%emt 0:05:08] [#]} (32. g3 $17 {was called for.} Re6 33. gxf4 Rxf6 34. b3 Rg6+ 35. Kh2) 32... fxg4 $1 $19 {[%emt 0:01:01]} 33. hxg4 {[%emt 0:00:25] [#]} Re6 $1 {[%emt 0:01:13]} 34. b3 {[%emt 0:01:43]} (34. Bd4 $17 {might work better.}) 34... Rxf6 {[%emt 0:00:58]} 35. bxc4 {[%emt 0:00:03]} dxc4 {[%emt 0:00:25]} 36. Ra6 {[%emt 0:01:44]} Be5 {[%emt 0:00:23]} 37. Ne4 {[%emt 0:00:12]} (37. Ne2) 37... Rg6 {[%emt 0:00:10] Weighted Error Value: White=0.27 (precise) /Black=0.09 (flawless)} 0-1

[Event "Italian-ch Teams-B 2022"]
[Site "Montesilvano"]
[Date "2022.04.20"]
[Round "3.3"]
[White "Ortega, Lexy"]
[Black "Socko, Monika"]
[Result "1-0"]
[ECO "D02"]
[WhiteElo "2429"]
[BlackElo "2393"]
[Annotator "TA"]
[PlyCount "107"]
[EventDate "2022.04.19"]
[EventType "team-tourn"]
[EventCountry "ITA"]
[SourceTitle "playchess.com"]
[Source "ChessBase"]
[SourceQuality "1"]
[TimeControl "40/5400+30:1800+30"]

{[%evp 9,107,-1,14,-2,-2,0,2,-15,0,-21,-8,-33,-31,-49,108,110,104,100,106,93,128,116,141,155,168,169,213,209,176,143,135,150,136,141,135,156,153,137,156,156,143,115,156,156,193,190,317,306,349,332,456,507,485,495,448,333,382,371,379,441,448,416,399,427,420,417,364,355,268,15,15,-8,-8,-8,437,345,580,542,425,538,468,453,117,132,1256,902,29977,29978,29979,29980,29980,29981,29981,29982,29982,29983,29984,29985,29985,29985]} 1. d4 {[%emt 0:01:51]} Nf6 {[%emt 0:00:06]} 2. Nf3 {[%emt 0:00:02]} e6 {[%emt 0:00:06]} 3. Bf4 {[%emt 0:00:30]} d5 {[%emt 0:00:12]} 4. e3 {[%emt 0:00:06]} c5 {[%emt 0:00:15]} 5. c3 {[%emt 0:00:05]} Bd6 {[%emt 0:00:36]} 6. Ne5 {[%emt 0:01:36] D02: 1 d4 d5 2 Nf3 sidelines, including 2...Nf6 3 g3 and 2...Nf6 3 Bf4.} O-O {[%emt 0:00:28]} 7. Nd2 {[%emt 0:00:36]} Qc7 {[%emt 0:01:33] is the new trend.} 8. Bg3 {[%emt 0:11:18] The position is equal.} Nc6 {[%emt 0:04:52]} 9. f4 {[%emt 0:08:26]} Ne4 {[%emt 0:09:16]} 10. Bd3 {[%emt 0:19:35]} f5 {[%emt 0:19:43]} 11. O-O {[%emt 0:01:09]} Bd7 $2 {[%emt 0:02:56] [#]} (11... Qb6 $15 12. Bxe4 fxe4) 12. Bxe4 $146 {[%emt 0:10:34]} (12. Nxd7 {feels hotter.} Qxd7 13. Bxe4 fxe4 14. Nxe4 cxd4 15. Nxd6 Qxd6 16. exd4 Qd7 17. Qe2) ({Predecessor:} 12. Bh4 Be8 13. Kh1 Nxe5 14. fxe5 Be7 15. Nxe4 fxe4 16. Rxf8+ Bxf8 17. Be2 Be7 18. Qe1 cxd4 19. exd4 Bxh4 20. Qxh4 {1-0 (66) Derakhshani,B (2353)-Gurel,E (2353) Chess.com INT 2021}) 12... fxe4 {[%emt 0:20:39]} 13. Nxd7 {[%emt 0:02:30]} Qxd7 {[%emt 0:00:03] [#]} 14. Nxe4 $1 {[%emt 0:05:44][%mdl 512]} dxe4 {[%emt 0:06:06]} (14... cxd4 15. Nxd6) 15. dxc5 {[%emt 0:00:07]} Rad8 {[%emt 0:00:02]} 16. cxd6 {[%emt 0:01:10]} ({Avoid the trap} 16. Qxd6 $2 Qe8 17. Rad1 (17. Qc7 $2 Rf7 $19) 17... Rxd6 18. cxd6 Qd7 $19) 16... Qxd6 {[%emt 0:00:02]} 17. Qb3 {[%emt 0:04:23]} Rf5 {[%emt 0:04:30]} 18. Rad1 {[%emt 0:06:22]} Rd5 {[%emt 0:02:42]} 19. f5 {[%emt 0:03:28]} Qe7 {[%emt 0:06:44]} 20. fxe6 {[%emt 0:02:36]} Rxd1 {[%emt 0:00:09]} 21. Rxd1 {[%emt 0:00:02]} Rxd1+ {[%emt 0:00:05]} 22. Qxd1 {[%emt 0:00:06]} Qxe6 {[%emt 0:00:02]} 23. b3 {[%emt 0:01:22]} h6 {[%emt 0:00:26]} 24. h3 {[%emt 0:00:31]} Kh7 {[%emt 0:00:19]} 25. Kh2 {[%emt 0:00:19]} a6 {[%emt 0:05:08]} 26. Qd6 {[%emt 0:04:05]} Qf7 {[%emt 0:02:07]} 27. c4 {[%emt 0:01:42]} h5 {[%emt 0:03:32]} (27... Qe7 {was necessary.} 28. Qd5 Nb4 29. Qf5+ Kh8) 28. Qd5 $18 {[%emt 0:02:15]} Qe8 {[%emt 0:00:01]} 29. Bd6 {[%emt 0:01:20]} Qg6 {[%emt 0:02:26]} 30. b4 {[%emt 0:00:42]} h4 {[%emt 0:01:20]} 31. Kh1 {[%emt 0:04:05]} Nd8 {[%emt 0:01:49]} 32. a3 {[%emt 0:03:11]} Qe6 {[%emt 0:04:39]} 33. Bc7 {[%emt 0:02:41]} Qxd5 {[%emt 0:00:13]} 34. cxd5 {[%emt 0:00:01][%cal Bc4d5,Bd5d6][%mdl 4128] Endgame KB-KN} Nf7 {[%emt 0:00:01] [#]} 35. d6 $1 {[%emt 0:01:58] aiming for d7.} Ne5 {[%emt 0:00:02]} 36. Bd8 {[%emt 0:00:11]} Kg6 {[%emt 0:00:20]} 37. Bxh4 {[%emt 0:00:03]} Kf7 {[%emt 0:00:08]} 38. g4 {[%emt 0:01:40]} Ke6 {[%emt 0:00:07]} 39. Bg3 $2 {[%emt 0:00:22]} (39. Kg2 $18) 39... Nc4 $11 {[%emt 0:00:15]} 40. Bf4 {[%emt 0:00:51] Threatens to win with a4.} Nxa3 {[%emt 0:00:37]} 41. Be5 {[%emt 0:21:12]} Nc2 $2 {[%emt 0:28:03][%mdl 8192]} (41... Kxe5 $2 42. d7 Ke6 43. d8=Q $18) (41... g5 $1 $11 {and Black is okay.}) 42. Bxg7 $18 {[%emt 0:00:56]} Nxe3 $2 {[%emt 0:00:03]} (42... Kxd6 43. Kg2 Ke6) 43. Kh2 {[%emt 0:04:20]} Kxd6 {[%emt 0:00:10]} 44. Kg3 {[%emt 0:00:13]} Nd5 {[%emt 0:00:03]} 45. h4 {[%emt 0:01:06]} Ke6 $2 {[%emt 0:01:30]} ({Black should try} 45... Ke7 $18 46. h5 Kf7) 46. h5 {[%emt 0:01:18]} b6 $2 {[%emt 0:00:45][%mdl 8192]} (46... Kf7 $16 47. Bd4 Nxb4) 47. Bd4 {[%emt 0:01:33] h6 is the strong threat.} a5 {[%emt 0:03:19]} 48. h6 {[%emt 0:02:02] White mates.} Ne7 {[%emt 0:01:25]} 49. bxa5 {[%emt 0:01:00]} bxa5 {[%emt 0:00:02]} 50. h7 {[%emt 0:00:12]} Ng6 {[%emt 0:00:17]} 51. h8=Q {[%emt 0:00:12]} Nxh8 {[%emt 0:00:01]} 52. Bxh8 {[%emt 0:00:04]} a4 {[%emt 0:00:24]} 53. Kf4 {[%emt 0:00:03]} Kd5 {[%emt 0:00:01]} 54. Bb2 {[%emt 0:03:44] Weighted Error Value: White=0.16 (very precise) /Black=0.51} 1-0

[Event "Italian-ch Teams-B 2022"]
[Site "Montesilvano"]
[Date "2022.04.20"]
[Round "3.3"]
[White "Zamengo, Fulvio"]
[Black "Andreoni, Giuseppe"]
[Result "1-0"]
[ECO "B45"]
[WhiteElo "2404"]
[BlackElo "2158"]
[Annotator "TA"]
[PlyCount "83"]
[EventDate "2022.04.19"]
[EventType "team-tourn"]
[EventCountry "ITA"]
[SourceTitle "playchess.com"]
[Source "ChessBase"]
[SourceQuality "1"]
[TimeControl "40/5400+30:1800+30"]

{[%evp 27,83,9,8,11,11,13,6,10,64,55,49,63,63,54,57,45,51,50,50,46,71,68,71,37,34,34,38,0,0,0,0,0,0,0,0,0,0,-63,-63,-106,-25,-31,-31,-95,-94,-94,617,525,578,555,514,557,559,535,530,542,536,370]} 1. e4 {[%emt 0:01:25]} c5 {[%emt 0:00:48]} 2. Nf3 {[%emt 0:00:56]} e6 {[%emt 0:00:05]} 3. d4 {[%emt 0:03:06]} cxd4 {[%emt 0:00:10]} 4. Nxd4 {[%emt 0:00:04]} Nf6 {[%emt 0:00:13]} 5. Nc3 {[%emt 0:08:45]} Nc6 {[%emt 0:00:18]} 6. Nxc6 {[%emt 0:00:28]} bxc6 {[%emt 0:00:06]} 7. e5 {[%emt 0:01:19]} Nd5 {[%emt 0:00:09]} 8. Ne4 {[%emt 0:00:02]} Qc7 {[%emt 0:00:05]} 9. f4 {[%emt 0:00:03]} Qb6 {[%emt 0:00:05]} 10. c4 {[%emt 0:00:09]} Bb4+ {[%emt 0:00:06]} 11. Ke2 {[%emt 0:00:03]} f5 {[%emt 0:00:07]} 12. Nf2 {[%emt 0:00:05]} Ba6 {[%emt 0:00:07]} 13. Kf3 {[%emt 0:00:18]} Ne7 {[%emt 0:00:11]} 14. Be3 {[%emt 0:00:05]} Bc5 {[%emt 0:00:06]} 15. Bxc5 {[%emt 0:00:06] B45: Sicilian Four Knights.} Qxc5 {[%emt 0:00:03]} 16. Qa4 {[%emt 0:03:45]} Bb7 {[%emt 0:22:20][%cal Og7g5]} 17. h4 {[%emt 0:04:31] [#] The position is equal.} Qb5 $146 {[%emt 0:15:47]} ({Predecessor:} 17... Qb6 18. Qa3 c5+ 19. Kg3 O-O 20. Rd1 Rfd8 21. Be2 Rab8 22. Rd2 Nc6 23. Rd6 Qb4 24. Qxb4 Nxb4 {1-0 (37) Esipenko,A (2716)-Abasov,N (2656) Krasnaya Polyana 2021}) 18. Qa3 $14 {[%emt 0:45:00]} c5+ {[%emt 0:02:36]} 19. Kg3 {[%emt 0:00:07]} Qb6 {[%emt 0:07:05]} 20. Rh3 {[%emt 0:08:04]} a5 {[%emt 0:31:43]} 21. Rd1 {[%emt 0:04:38]} a4 {[%emt 0:01:44]} 22. Kh2 {[%emt 0:01:01]} Bc6 {[%emt 0:00:56]} 23. Rd2 {[%emt 0:06:12]} Kf7 {[%emt 0:01:03]} 24. Be2 {[%emt 0:01:23]} Rhb8 {[%emt 0:03:02]} 25. Qg3 {[%emt 0:00:59]} Qa5 {[%emt 0:01:12]} 26. Qe3 {[%emt 0:01:49]} Rb4 {[%emt 0:04:15][%cal Oa4a3]} 27. h5 {[%emt 0:04:06]} a3 {[%emt 0:03:20]} 28. b3 {[%emt 0:01:53]} Rxb3 $1 {[%emt 0:00:47]} 29. axb3 {[%emt 0:00:01]} a2 {[%emt 0:00:08]} 30. Rd1 {[%emt 0:00:04] [#] aiming for Ra1.} a1=Q {[%emt 0:00:06]} 31. Rxa1 {[%emt 0:00:04]} Qxa1 {[%emt 0:00:25]} 32. Nd3 {[%emt 0:00:06]} ({White should try} 32. Qxc5 $11 Ra5 33. Qe3) 32... Ra2 $15 {[%emt 0:04:39]} 33. h6 {[%emt 0:04:05] And now hxg7 would win.} g6 {[%emt 0:01:56]} (33... g5 $1 $17 {[%cal Rg5g4] White must now prevent ...g4.} 34. fxg5 (34. Rg3 $2 g4 $19) 34... Ng6) 34. Bf3 $11 {[%emt 0:00:40]} Qb1 {[%emt 0:00:55]} 35. Nxc5 {[%emt 0:00:42]} ({White should play} 35. Bxc6 $15 Nxc6 36. Nxc5) 35... Bxf3 $17 {[%emt 0:00:40]} 36. Rxf3 {[%emt 0:00:28][%cal Bh3f3,Bf3d3,Bd3d7][%mdl 32]} Ng8 $2 {[%emt 0:00:21][%mdl 8192] [#] This move loses the game for Black.} (36... Ra1 $17 37. Kg3 (37. Nxd7 $2 g5 $19) 37... Qh1) 37. Qd3 {[%emt 0:00:09] White is clearly winning.} Qxd3 {[%emt 0:00:29]} 38. Rxd3 {[%emt 0:00:01]} Nxh6 {[%emt 0:00:04][%cal Bg8h6,Bh6g4,Bg4e3][%mdl 32]} 39. Rxd7+ {[%emt 0:00:09]} Kg8 {[%emt 0:00:27]} 40. Nxe6 {[%emt 0:00:39]} Ng4+ {[%emt 0:00:35]} 41. Kg3 {[%emt 0:31:05]} Ne3 {[%emt 0:30:28]} 42. Ng5 {[%emt 0:01:42] Weighted Error Value: White=0.19 (very precise) /Black=0.33} 1-0